bitfinex-derivatives/quotes_SOLF0:USTF0_20240930
["timestamp","ask_amount","ask_price","bid_price","bid_amount"]
[1727725356315,3.2357,154.56,154.55,6.3498423]
[1727725358034,3.2357,154.56,154.55,6.34908142]
[1727725360015,6.4688,154.63,154.55,15.29908142]
[1727725360218,8.95,154.62,154.57,8.95]
[1727725360521,3.2353,154.58,154.57,8.95]
[1727725361116,8.95,154.62,154.57,8.95]
[1727725362217,3.2353,154.58,154.57,8.95]
[1727725362918,3.2353,154.58,154.56,3.2356]
[1727725365021,3.2353,154.58,154.57,6.22351133]
[1727725365420,3.2353,154.58,154.56,3.2356]
[1727725366517,3.2353,154.58,154.55,12.31092]
[1727725366718,3.2353,154.58,154.56,6.22366538]
[1727725366924,3.2353,154.58,154.55,12.31092]
[1727725367224,3.2355,154.57,154.55,12.31092]
[1727725367524,3.2355,154.57,154.56,6.22348375]
[1727725370348,3.2355,154.57,154.55,3.36082]
[1727725370519,3.2355,154.57,154.56,6.22289374]
[1727725370830,3.2355,154.57,154.55,3.36082]
[1727725371021,3.2355,154.57,154.56,6.22284545]
[1727725371220,3.2355,154.57,154.55,3.36082]
[1727725371422,3.2355,154.57,154.56,6.22262928]
[1727725371721,3.2355,154.57,154.55,3.36082]
[1727725372325,3.2357,154.56,154.55,0.12502]
[1727725372528,3.2357,154.56,154.55,6.34746285]
[1727725373225,8.95,154.6,154.55,6.34746285]
[1727725373530,3.2356,154.57,154.55,3.36102]
[1727725374519,3.2356,154.57,154.55,0.12502]
[1727725375223,3.2356,154.57,154.55,3.36092]
[1727725376523,3.2356,154.57,154.56,6.2217246]
[1727725376759,8.95,154.61,154.55,3.36092]
[1727725376922,3.2354,154.58,154.55,3.36092]
[1727725377324,3.2354,154.58,154.56,6.22172468]
[1727725377525,3.2354,154.58,154.55,3.36092]
[1727725377724,3.2354,154.58,154.56,6.22147161]
[1727725378030,3.2354,154.58,154.55,3.36092]
[1727725378227,3.2354,154.58,154.56,6.22130845]
[1727725378428,3.2354,154.58,154.55,3.36092]
[1727725378728,3.2354,154.58,154.56,6.22137487]
[1727725378926,3.2354,154.58,154.55,3.36092]
[1727725379125,3.2354,154.58,154.56,6.22137397]
[1727725379324,3.2354,154.58,154.55,3.36092]
[1727725379526,3.2354,154.58,154.56,6.22130823]
[1727725379725,3.2354,154.58,154.55,3.36092]
[1727725379922,3.2354,154.58,154.56,6.22130823]
[1727725380156,3.2354,154.58,154.55,3.36092]
[1727725380633,3.2354,154.58,154.56,6.22115241]
[1727725380926,3.2354,154.58,154.55,3.36092]
[1727725381130,3.2354,154.58,154.56,6.22110157]
[1727725381327,3.2354,154.58,154.55,3.36092]
[1727725381527,8.95,154.61,154.56,6.22103592]
[1727725381728,8.95,154.61,154.55,0.12502]
[1727725381925,8.95,154.59,154.55,0.12502]
[1727725382425,3.2357,154.56,154.55,0.12502]
[1727725384823,12.1857,154.56,154.55,0.12502]
[1727725387034,8.95,154.56,154.49,3.40011226]
[1727725387221,8.95,154.54,154.5,6.22065192]
[1727725387422,3.2366,154.52,154.51,6.22065192]
[1727725387831,8.95,154.54,154.49,3.40011226]
[1727725388033,3.2369,154.51,154.5,6.22064633]
[1727725389526,3.2369,154.51,154.49,3.40011226]
[1727725391733,3.237,154.5,154.49,3.40011226]
[1727725393737,3.2369,154.51,154.49,3.40011226]
[1727725394136,8.95,154.54,154.49,3.40011226]
[1727725395035,3.237,154.51,154.49,3.40011226]
[1727725396733,3.237,154.5,154.49,3.40011226]
[1727725402451,3.237,154.5,154.49,12.35011226]
[1727725404142,3.2367,154.52,154.49,15.58721226]
[1727725404346,3.2367,154.52,154.5,8.95]
[1727725405551,3.2367,154.52,154.5,12.187]
[1727725406650,3.2367,154.52,154.5,8.95]
[1727725409560,8.95,154.54,154.5,8.95]
[1727725409756,3.2368,154.51,154.5,8.95]
[1727725410558,1.2856,154.58,154.5,8.95]
[1727725410758,10.2356,154.58,154.53,8.95]
[1727725411162,3.2356,154.57,154.53,8.95]
[1727725411365,10.2356,154.58,154.53,8.95]
[1727725411855,3.2361,154.55,154.53,12.1864]
[1727725412253,10.2356,154.58,154.52,8.95]
[1727725412254,8.95,154.57,154.52,8.95]
[1727725413357,3.2363,154.54,154.52,12.1865]
[1727725417259,3.2363,154.54,154.52,8.95]
[1727725418562,3.2363,154.54,154.52,12.1866]
[1727725420758,3.2357,154.57,154.53,3.2362]
[1727725420963,8.95,154.58,154.53,3.2362]
[1727725421467,3.236,154.55,154.53,3.2362]
[1727725422260,3.2363,154.54,154.51,3.2367]
[1727725422458,8.95,154.57,154.5,12.8528]
[1727725422768,3.2365,154.53,154.5,13.5105]
[1727725423066,8.95,154.57,154.51,6.21433379]
[1727725423266,8.95,154.57,154.5,13.5105]
[1727725423459,8.95,154.57,154.51,6.21465143]
[1727725423658,8.95,154.57,154.5,13.5105]
[1727725424276,3.2367,154.52,154.5,13.5105]
[1727725424757,3.237,154.5,154.49,73.32011226]
[1727725424964,8.95,154.55,154.49,88.48497773]
[1727725425164,8.95,154.55,154.5,6.21486547]
[1727725425369,3.2368,154.51,154.49,82.27011226]
[1727725425668,3.2368,154.51,154.5,6.21504959]
[1727725426078,3.2368,154.51,154.49,82.27011226]
[1727725426273,3.2368,154.51,154.5,6.21504959]
[1727725429570,3.2368,154.51,154.5,6.21594658]
[1727725436280,3.2368,154.51,154.49,15.58731226]
[1727725436578,3.2368,154.51,154.5,6.21945174]
[1727725436778,3.2368,154.51,154.49,15.58731226]
[1727725437578,8.95,154.55,154.5,8.95]
[1727725437785,8.95,154.55,154.5,12.187]
[1727725438487,3.2367,154.52,154.5,12.187]
[1727725439677,3.2367,154.52,154.5,8.95]
[1727725441784,3.2368,154.51,154.49,6.63721226]
[1727725441984,3.2368,154.51,154.5,8.95]
[1727725442190,3.2368,154.51,154.5,15.17167214]
[1727725442687,1.2963,154.59,154.5,15.17167214]
[1727725442885,3.2366,154.52,154.51,8.95]
[1727725446293,3.2356,154.57,154.52,3.2364]
[1727725446587,1.2963,154.59,154.53,8.95]
[1727725446794,1.2963,154.59,154.54,8.95]
[1727725447488,3.236,154.55,154.54,8.95]
[1727725451184,1.2963,154.59,154.54,8.95]
[1727725451991,3.236,154.55,154.54,8.95]
[1727725453694,3.2358,154.56,154.54,12.1862]
[1727725454000,3.2358,154.56,154.55,8.95]
[1727725454504,0.12502,154.61,154.55,8.95]
[1727725454794,0.12502,154.61,154.59,8.95]
[1727725454988,3.35982,154.61,154.59,8.95]
[1727725455189,3.35982,154.61,154.6,8.95]
[1727725455190,0.12502,154.61,154.6,8.95]
[1727725455396,0.12502,154.61,154.6,15.1747008]
[1727725456093,10.38332,154.67,154.6,18.4096008]
[1727725456094,0.12502,154.67,154.6,18.4096008]
[1727725456297,0.12502,154.67,154.63,8.95]
[1727725456699,3.2341,154.64,154.63,8.95]
[1727725456899,9.07502,154.67,154.62,8.95]
[1727725457198,3.2343,154.63,154.62,8.95]
[1727725459198,9.07502,154.67,154.62,8.95]
[1727725459199,3.2341,154.64,154.62,8.95]
[1727725459399,3.2341,154.64,154.63,8.95]
[1727725463727,0.12502,154.67,154.64,3.234]
[1727725464012,0.12502,154.67,154.66,8.95]
[1727725464804,3.35842,154.67,154.66,8.95]
[1727725465513,3.2339,154.66,154.65,8.95]
[1727725476521,0.12502,154.67,154.61,69.88]
[1727725476719,3.2343,154.63,154.61,3.2346]
[1727725476926,3.2343,154.63,154.62,8.95]
[1727725480920,3.2347,154.61,154.6,69.86]
[1727725481120,3.2347,154.61,154.6,78.81]
[1727725486326,3.2347,154.61,154.6,8.95]
[1727725487527,8.95,154.66,154.59,3.23554153]
[1727725487731,3.2351,154.59,154.58,1.2885]
[1727725487933,8.95,154.65,154.59,8.95]
[1727725488733,3.235,154.6,154.59,8.95]
[1727725490230,3.2348,154.61,154.59,12.1851]
[1727725490429,3.2348,154.61,154.6,8.95]
[1727725490929,3.2345,154.62,154.6,12.1848]
[1727725491145,3.2345,154.62,154.61,8.95]
[1727725496535,8.95,154.65,154.6,8.95]
[1727725496737,3.2348,154.61,154.6,8.95]
[1727725500234,8.95,154.64,154.58,1.2885]
[1727725500428,0.12502,154.67,154.57,8.95]
[1727725500429,8.95,154.63,154.57,8.95]
[1727725500663,8.95,154.64,154.59,8.95]
[1727725500829,3.2349,154.61,154.59,8.95]
[1727725501338,8.95,154.64,154.59,8.95]
[1727725501532,3.2349,154.6,154.59,8.95]
[1727725502634,8.95,154.64,154.59,8.95]
[1727725502635,3.2348,154.61,154.59,8.95]
[1727725503743,3.2349,154.6,154.59,8.95]
[1727725504144,8.95,154.64,154.59,12.1849]
[1727725504348,3.2348,154.61,154.59,12.1849]
[1727725504537,0.12502,154.67,154.6,8.95]
[1727725504739,0.12502,154.67,154.64,8.95]
[1727725505543,3.2339,154.65,154.64,8.95]
[1727725506246,3.2342,154.64,154.63,8.95]
[1727725506443,0.12502,154.67,154.64,8.95]
[1727725506945,3.2338,154.66,154.64,8.95]
[1727725507143,0.12502,154.67,154.64,8.95]
[1727725508337,3.2339,154.65,154.62,3.2345]
[1727725508542,9.07502,154.67,154.63,8.95]
[1727725509247,3.2341,154.64,154.63,8.95]
[1727725511045,3.2339,154.65,154.63,8.95]
[1727725513143,9.07502,154.67,154.63,8.95]
[1727725514151,9.07502,154.67,154.6,3.2348]
[1727725514349,8.95,154.66,154.6,8.95]
[1727725514545,3.2347,154.61,154.6,8.95]
[1727725515050,3.2347,154.61,154.58,3.2353]
[1727725515051,3.2342,154.64,154.59,8.95]
[1727725515246,0.12502,154.67,154.59,12.1851]
[1727725515475,8.95,154.66,154.59,12.1851]
[1727725515652,3.2346,154.62,154.59,12.1851]
[1727725515848,8.95,154.66,154.59,12.1851]
[1727725516150,8.95,154.66,154.59,8.95]
[1727725516344,3.2349,154.61,154.59,8.95]
[1727725516944,3.2349,154.61,154.59,12.185]
[1727725518853,3.2339,154.65,154.62,3.2343]
[1727725519050,3.2339,154.65,154.64,8.95]
[1727725519351,3.35862,154.67,154.64,8.95]
[1727725519552,0.12502,154.67,154.65,8.95]
[1727725521153,3.35852,154.67,154.66,8.95]
[1727725521556,0.12502,154.67,154.66,8.95]
[1727725522357,3.35842,154.67,154.66,8.95]
[1727725525260,0.12502,154.67,154.66,12.1837]
[1727725525460,0.12502,154.67,154.66,18.40525154]
[1727725525857,0.12502,154.67,154.66,15.17155154]
[1727725526058,0.12502,154.67,154.66,6.22155154]
[1727725526563,0.12502,154.67,154.63,2.5057]
[1727725526764,3.2339,154.65,154.64,6.22139688]
[1727725527165,3.2344,154.63,154.61,78.83]
[1727725527361,8.95,154.66,154.62,6.22245077]
[1727725527561,8.95,154.66,154.61,78.83]
[1727725527762,3.2344,154.63,154.61,78.83]
[1727725528465,8.95,154.66,154.61,69.88]
[1727725528767,3.2344,154.63,154.61,8.95]
[1727725529664,3.2347,154.61,154.58,2.6783]
[1727725529869,8.95,154.65,154.59,18.40782471]
[1727725530059,8.95,154.65,154.6,6.22272471]
[1727725530255,8.95,154.65,154.59,8.95]
[1727725530460,8.95,154.64,154.6,6.22265192]
[1727725530658,8.95,154.64,154.59,8.95]
[1727725530867,8.95,154.64,154.6,6.22269217]
[1727725530868,3.2347,154.62,154.6,6.22269217]
[1727725531164,3.2347,154.62,154.59,8.95]
[1727725531165,8.95,154.64,154.59,8.95]
[1727725531376,8.95,154.62,154.58,8.95]
[1727725531965,3.2351,154.6,154.58,8.95]
[1727725532172,8.95,154.64,154.58,8.95]
[1727725532669,3.2351,154.59,154.58,8.95]
[1727725532869,3.2351,154.59,154.58,6.22239496]
[1727725533166,8.95,154.61,154.57,69.86]
[1727725533167,3.2353,154.58,154.57,69.86]
[1727725533366,3.2353,154.58,154.57,76.08180063]
[1727725533870,3.2352,154.59,154.57,76.08180063]
[1727725534071,1.2631,154.65,154.58,8.95]
[1727725534072,8.95,154.64,154.58,8.95]
[1727725534370,8.95,154.64,154.59,8.95]
[1727725534568,10.2131,154.65,154.59,8.95]
[1727725534868,8.95,154.65,154.59,8.95]
[1727725536370,3.2347,154.62,154.59,8.95]
[1727725536563,8.95,154.65,154.59,8.95]
[1727725537368,1.2822,154.66,154.62,8.95]
[1727725537675,49.69808824,154.67,154.64,8.95]
[1727725538165,3.2338,154.66,154.64,8.95]
[1727725538582,49.69808824,154.67,154.64,8.95]
[1727725539272,49.69808824,154.67,154.62,8.95]
[1727725539273,3.2339,154.65,154.62,8.95]
[1727725539670,49.69808824,154.67,154.62,8.95]
[1727725539671,3.2343,154.63,154.62,8.95]
[1727725540170,3.2343,154.63,154.61,8.95]
[1727725540674,58.64808824,154.67,154.61,8.95]
[1727725540970,3.2341,154.64,154.61,12.1847]
[1727725542864,8.95,154.65,154.61,8.95]
[1727725543473,3.2344,154.63,154.61,8.95]
[1727725543868,3.2344,154.63,154.58,4.63404888]
[1727725543869,8.95,154.62,154.58,1.3638]
[1727725544076,8.95,154.61,154.57,69.86]
[1727725544473,3.2347,154.61,154.58,9.4574266]
[1727725544867,3.2347,154.61,154.58,3.2352]
[1727725545173,8.95,154.65,154.6,8.95]
[1727725546169,3.2344,154.63,154.6,12.1848]
[1727725546376,8.95,154.66,154.61,8.95]
[1727725546575,49.69808824,154.67,154.61,8.95]
[1727725546879,58.64808824,154.67,154.61,8.95]
[1727725547777,3.2341,154.65,154.62,3.2344]
[1727725548283,3.2341,154.64,154.61,12.1846]
[1727725551271,3.2341,154.64,154.61,3.2346]
[1727725551579,3.2343,154.63,154.61,3.2346]
[1727725552079,3.2343,154.63,154.6,12.1849]
[1727725552276,3.2342,154.64,154.6,12.1849]
[1727725552482,8.95,154.63,154.59,8.95]
[1727725552781,3.2346,154.62,154.59,12.1851]
[1727725553084,3.2346,154.62,154.6,6.22194335]
[1727725553280,3.2346,154.62,154.59,12.1851]
[1727725553579,3.2346,154.62,154.6,6.22184476]
[1727725553779,3.2346,154.62,154.59,12.1851]
[1727725553981,3.2346,154.62,154.6,6.22183271]
[1727725554281,3.2346,154.62,154.59,12.1851]
[1727725554583,8.95,154.64,154.6,6.22175863]
[1727725554773,3.2347,154.61,154.6,6.22175863]
[1727725554970,3.2347,154.61,154.59,12.1851]
[1727725555282,3.235,154.6,154.57,8.95]
[1727725555476,3.235,154.6,154.58,6.22175584]
[1727725555676,3.235,154.6,154.59,6.22175584]
[1727725556182,3.2348,154.61,154.59,15.17175584]
[1727725556372,8.95,154.65,154.6,8.95]
[1727725556881,8.95,154.65,154.6,12.1848]
[1727725558577,8.95,154.65,154.6,8.95]
[1727725558779,3.2346,154.62,154.59,12.185]
[1727725559784,3.2346,154.62,154.6,9.45612537]
[1727725559976,3.2346,154.62,154.6,3.2349]
[1727725560178,3.2342,154.64,154.6,8.95]
[1727725560585,8.95,154.66,154.61,8.95]
[1727725560881,3.2341,154.64,154.61,3.2346]
[1727725561083,3.2341,154.64,154.6,8.95]
[1727725561278,8.95,154.66,154.6,8.95]
[1727725561475,8.95,154.66,154.62,3.2344]
[1727725562383,3.2341,154.64,154.62,3.2344]
[1727725562778,3.2341,154.64,154.6,8.95]
[1727725562975,3.2341,154.64,154.61,9.45536371]
[1727725563175,3.2341,154.64,154.61,3.2346]
[1727725563387,3.2343,154.63,154.61,3.2346]
[1727725566985,12.1842,154.64,154.61,3.2346]
[1727725567186,12.1842,154.64,154.62,3.2345]
[1727725567492,8.95,154.66,154.62,3.2345]
[1727725567689,3.2341,154.65,154.62,3.2345]
[1727725568297,3.2341,154.64,154.62,3.2345]
[1727725569394,3.2341,154.64,154.6,3.2347]
[1727725569395,3.2346,154.62,154.6,3.2347]
[1727725569595,8.95,154.64,154.59,8.95]
[1727725569894,3.2342,154.64,154.62,3.2345]
[1727725570089,8.95,154.66,154.6,8.95]
[1727725570285,58.64808824,154.67,154.62,8.95]
[1727725570995,3.234,154.65,154.62,8.95]
[1727725571399,3.2341,154.64,154.61,3.2345]
[1727725572899,3.2341,154.64,154.6,8.95]
[1727725573198,58.64808824,154.67,154.62,8.95]
[1727725573389,49.69808824,154.67,154.63,15.17183253]
[1727725573589,0.12502,154.67,154.66,12.1837]
[1727725574090,0.12502,154.67,154.66,18.40431858]
[1727725574800,0.12502,154.67,154.66,9.45431858]
[1727725576292,0.12502,154.67,154.66,3.2337]
[1727725577594,0.12502,154.67,154.66,9.45089936]
[1727725578193,0.12502,154.67,154.66,9.45089935]
[1727725578399,0.12502,154.67,154.66,3.2337]
[1727725578600,0.12502,154.67,154.66,9.45004617]
[1727725578897,0.12502,154.67,154.64,3.234]
[1727725579097,0.12502,154.67,154.65,6.21664794]
[1727725579402,0.12502,154.67,154.64,3.234]
[1727725579901,3.35852,154.67,154.64,3.234]
[1727725580298,3.2337,154.66,154.64,3.234]
[1727725580900,3.2342,154.64,154.62,3.2343]
[1727725581108,0.12502,154.67,154.61,82.6937]
[1727725581399,9.07502,154.67,154.61,82.6937]
[1727725581597,0.12502,154.67,154.61,12.8137]
[1727725581803,3.234,154.65,154.63,3.2343]
[1727725581999,9.07502,154.67,154.61,12.8137]
[1727725582202,8.95,154.65,154.61,12.8137]
[1727725582506,8.95,154.65,154.62,6.21612693]
[1727725582507,3.2344,154.63,154.62,6.21612693]
[1727725582706,8.95,154.64,154.58,8.95]
[1727725582899,3.2349,154.6,154.59,6.21716124]
[1727725583506,3.2349,154.6,154.57,3.2354]
[1727725583698,3.2349,154.6,154.58,6.21758366]
[1727725583898,3.2349,154.6,154.56,82.6191]
[1727725583899,3.2353,154.59,154.56,76.9048]
[1727725584099,8.95,154.6,154.56,69.86]
[1727725584300,3.8591,154.66,154.56,78.81]
[1727725584301,8.95,154.61,154.56,78.81]
[1727725584800,3.2352,154.59,154.56,82.0457]
[1727725586203,3.2351,154.6,154.57,3.2355]
[1727725586797,3.2352,154.59,154.56,82.0457]
[1727725586996,8.95,154.61,154.56,78.81]
[1727725587201,8.95,154.6,154.56,69.86]
[1727725587397,3.2355,154.57,154.56,69.86]
[1727725588511,3.2352,154.59,154.56,73.0957]
[1727725590111,3.235,154.6,154.56,69.86]
[1727725590610,8.95,154.61,154.56,69.86]
[1727725590811,3.2352,154.59,154.57,3.2354]
[1727725591609,8.95,154.61,154.55,9.07502]
[1727725591809,3.235,154.6,154.56,8.95]
[1727725592405,3.235,154.6,154.57,3.2354]
[1727725592710,8.95,154.61,154.56,8.95]
[1727725592916,8.95,154.61,154.57,3.2355]
[1727725594306,3.2351,154.59,154.57,3.2355]
[1727725594735,8.95,154.61,154.56,8.95]
[1727725594908,3.235,154.6,154.56,8.95]
[1727725595517,3.235,154.6,154.57,3.2354]
[1727725595911,3.2352,154.59,154.57,3.2354]
[1727725596614,8.95,154.62,154.56,8.95]
[1727725596818,3.235,154.6,154.58,3.2353]
[1727725597817,3.2342,154.64,154.6,3.2349]
[1727725598018,8.95,154.64,154.58,8.95]
[1727725598522,3.2347,154.61,154.59,3.235]
[1727725600822,3.2347,154.62,154.59,3.235]
[1727725601620,8.95,154.64,154.59,3.235]
[1727725601918,3.2345,154.62,154.58,8.95]
[1727725602323,3.2345,154.62,154.59,3.235]
[1727725607632,3.2349,154.6,154.58,12.1853]
[1727725608033,8.95,154.62,154.58,12.1853]
[1727725608237,8.95,154.62,154.58,8.95]
[1727725608533,3.2348,154.61,154.59,3.2351]
[1727725609329,3.2351,154.6,154.58,3.2353]
[1727725609529,3.2351,154.6,154.57,12.16252433]
[1727725609836,3.2352,154.59,154.57,8.95]
[1727725610133,3.2352,154.59,154.56,3.8739]
[1727725610134,8.95,154.6,154.55,0.12502]
[1727725610333,3.2352,154.59,154.56,9.45013694]
[1727725610558,3.2352,154.59,154.56,3.2357]
[1727725610740,8.95,154.6,154.56,3.2357]
[1727725610925,3.8591,154.66,154.55,9.07502]
[1727725611227,3.8591,154.66,154.57,3.2355]
[1727725611228,8.95,154.61,154.57,3.2355]
[1727725611528,8.95,154.61,154.56,12.1857]
[1727725611529,3.2351,154.59,154.56,12.1857]
[1727725611835,8.95,154.61,154.56,8.95]
[1727725612026,3.235,154.6,154.56,8.95]
[1727725612423,3.2347,154.61,154.57,15.16389534]
[1727725612623,3.2347,154.61,154.57,8.95]
[1727725612833,3.2347,154.61,154.57,12.18776886]
[1727725613768,3.2347,154.61,154.58,3.2352]
[1727725617530,3.2347,154.61,154.59,12.1851]
[1727725617737,3.2347,154.62,154.59,12.1851]
[1727725618739,3.2347,154.61,154.59,12.1851]
[1727725619539,3.2346,154.62,154.59,12.1851]
[1727725620242,3.2347,154.61,154.59,12.1851]
[1727725621140,3.2347,154.61,154.59,8.95]
[1727725621339,3.2344,154.63,154.59,8.95]
[1727725621540,8.95,154.64,154.59,8.95]
[1727725622240,3.2348,154.61,154.59,8.95]
[1727725622633,3.2348,154.61,154.59,12.1851]
[1727725622831,3.2348,154.61,154.59,3.2351]
[1727725623029,3.2348,154.61,154.58,8.95]
[1727725623235,3.2348,154.61,154.58,12.1852]
[1727725624542,8.95,154.62,154.58,8.95]
[1727725624741,8.95,154.62,154.56,3.9274]
[1727725624944,8.95,154.57,154.55,0.12502]
[1727725625246,3.2357,154.56,154.55,0.12502]
[1727725628644,12.1857,154.56,154.55,0.12502]
[1727725630752,8.95,154.56,154.49,4.71611226]
[1727725630952,8.95,154.54,154.5,6.20947501]
[1727725631159,8.95,154.54,154.49,4.71611226]
[1727725631459,3.2367,154.52,154.49,7.95321226]
[1727725631654,3.2367,154.52,154.49,4.71611226]
[1727725632049,3.2367,154.52,154.5,8.95]
[1727725637155,3.2364,154.53,154.49,4.67812]
[1727725637355,8.95,154.54,154.49,4.67812]
[1727725637555,1.2745,154.58,154.5,3.2368]
[1727725637755,3.2366,154.53,154.5,3.2368]
[1727725638152,8.95,154.55,154.51,3.2367]
[1727725638353,8.95,154.56,154.51,8.95]
[1727725638855,3.2362,154.54,154.52,3.2365]
[1727725639160,3.2362,154.54,154.51,8.95]
[1727725639359,3.2362,154.54,154.51,12.1867]
[1727725640660,3.2364,154.53,154.51,12.1867]
[1727725642265,3.2364,154.53,154.51,3.2367]
[1727725643462,8.95,154.55,154.49,4.71037215]
[1727725643763,3.2367,154.52,154.49,4.71037215]
[1727725643962,8.95,154.53,154.49,4.71037215]
[1727725644165,3.237,154.51,154.49,4.71037215]
[1727725645080,3.237,154.51,154.49,7.94757215]
[1727725646464,3.237,154.51,154.49,6.63157215]
[1727725646862,3.2367,154.52,154.49,6.63157215]
[1727725647263,8.95,154.54,154.5,8.95]
[1727725647465,3.2365,154.53,154.5,8.95]
[1727725647764,8.95,154.54,154.5,8.95]
[1727725648469,3.2364,154.53,154.5,12.1869]
[1727725649278,3.2361,154.55,154.51,8.95]
[1727725649568,8.95,154.58,154.53,8.95]
[1727725649767,8.95,154.58,154.54,3.2361]
[1727725650072,8.95,154.58,154.53,8.95]
[1727725650765,8.95,154.58,154.55,3.2359]
[1727725651164,8.95,154.58,154.53,8.95]
[1727725651363,3.2356,154.57,154.54,3.2361]
[1727725654171,12.1855,154.58,154.55,3.2359]
[1727725654369,8.95,154.6,154.55,8.95]
[1727725655071,3.2353,154.59,154.56,3.2356]
[1727725656769,0.12502,154.61,154.58,3.2352]
[1727725657367,3.35982,154.61,154.58,3.2352]
[1727725659570,3.35982,154.61,154.58,12.1852]
[1727725659771,0.12502,154.61,154.58,8.95]
[1727725659972,0.12502,154.61,154.59,3.2351]
[1727725660170,0.12502,154.61,154.58,8.95]
[1727725660377,0.12502,154.61,154.6,12.1849]
[1727725661085,0.12502,154.61,154.6,15.41092251]
[1727725665488,3.2338,154.66,154.63,3.2342]
[1727725665683,3.2338,154.66,154.63,12.1842]
[1727725667291,0.12502,154.67,154.65,12.1838]
[1727725668690,3.35852,154.67,154.65,12.1838]
[1727725669190,0.12502,154.67,154.66,3.2337]
[1727725670386,0.12502,154.67,154.66,12.1837]
[1727725672192,0.12502,154.67,154.66,8.95]
[1727725672384,0.12502,154.67,154.66,12.1837]
[1727725676994,0.12502,154.67,154.66,8.95]
[1727725677250,3.35862,154.67,154.65,8.95]
[1727725677691,0.12502,154.67,154.66,8.95]
[1727725679284,0.12502,154.67,154.66,12.1837]
[1727725686305,0.12502,154.73,154.66,8.95]
[1727725686506,3.2325,154.72,154.69,12.1829]
[1727725687106,3.35732,154.73,154.71,8.95]
[1727725687304,3.35732,154.73,154.72,8.95]
[1727725687305,0.12502,154.73,154.72,8.95]
[1727725687707,0.12502,154.73,154.72,12.1824]
[1727725688204,3.2313,154.78,154.74,3.2318]
[1727725688400,3.2313,154.78,154.76,8.95]
[1727725688799,3.35602,154.79,154.76,8.95]
[1727725689608,0.12502,154.79,154.78,8.95]
[1727725691602,0.12502,154.79,154.78,12.2458639]
[1727725692303,0.12502,154.79,154.78,15.4769639]
[1727725693212,0.12502,154.85,154.78,12.2458639]
[1727725693405,0.12502,154.85,154.83,8.95]
[1727725693812,1.3296,154.93,154.83,8.95]
[1727725694015,3.2288,154.9,154.89,8.95]
[1727725694203,1.3296,154.93,154.89,8.95]
[1727725694614,3.35362,154.91,154.89,8.95]
[1727725695813,3.2286,154.9,154.87,12.1791]
[1727725698315,0.12502,154.91,154.87,12.1791]
[1727725698515,3.35352,154.91,154.87,12.1791]
[1727725699716,3.2287,154.9,154.87,12.1791]
[1727725703621,0.12502,154.91,154.87,12.1791]
[1727725703819,3.2287,154.9,154.87,12.1791]
[1727725704325,3.2287,154.9,154.8,1.319]
[1727725704326,8.95,154.89,154.82,69.78]
[1727725704526,8.95,154.89,154.83,8.95]